bitfinex/quotes_BTCUSD_20240820
["timestamp","ask_amount","ask_price","bid_price","bid_amount"]
[1724133932583,2.21746439,61092.0,61091.0,0.0002]
[1724133933765,0.89915,61076.0,61075.0,0.009097]
[1724133933974,1.25325,61076.0,61075.0,0.009097]
[1724133934188,1.84388739,61076.0,61075.0,0.009097]
[1724133935220,1.84488739,61076.0,61075.0,0.010097]
[1724133935629,1.51742739,61076.0,61075.0,0.010097]
[1724133936033,1.84588739,61076.0,61075.0,0.010097]
[1724133937739,1.86888739,61076.0,61075.0,0.010097]
[1724133940124,1.54142739,61076.0,61075.0,0.010097]
[1724133940528,1.86888739,61076.0,61075.0,0.010097]
[1724133941800,1.54142739,61076.0,61075.0,0.010097]
[1724133942065,1.51842739,61076.0,61075.0,0.010097]
[1724133942275,1.37142739,61076.0,61075.0,0.010097]
[1724133942410,1.04396739,61076.0,61075.0,0.010097]
[1724133942624,1.04396739,61076.0,61075.0,0.501296]
[1724133942625,0.002,61076.0,61075.0,0.501296]
[1724133943010,0.002,61076.0,61075.0,0.940262]
[1724133943207,0.002,61076.0,61075.0,1.264728]
[1724133943571,0.002,61076.0,61075.0,1.42790539]
[1724133944119,0.002,61076.0,61075.0,1.43090539]
[1724133944120,0.001,61076.0,61075.0,1.43090539]
[1724133945155,0.2876,61094.0,61084.0,0.437217]
[1724133945386,0.2876,61094.0,61089.0,0.163694]
[1724133945387,0.48917696,61092.0,61089.0,0.163694]
[1724133945701,0.451282,61094.0,61089.0,0.163694]
[1724133945904,0.2876,61094.0,61087.0,0.163699]
[1724133946044,0.1,61093.0,61087.0,0.163699]
[1724133946403,0.427369,61093.0,61087.0,0.163699]
[1724133946651,0.163687,61092.0,61087.0,0.163699]
[1724133946870,0.008,61092.0,61089.0,0.001]
[1724133947017,0.16317739,61091.0,61089.0,0.001]
[1724133947218,0.572077,61090.0,61089.0,0.001]
[1724133947419,0.73525439,61090.0,61089.0,0.001]
[1724133948030,0.73525439,61090.0,61087.0,0.001]
[1724133948031,0.491094,61088.0,61087.0,0.001]
[1724133948214,0.94187139,61088.0,61087.0,0.001]
[1724133948618,0.45077739,61088.0,61081.0,0.163715]
[1724133948816,0.163704,61086.0,61081.0,0.163715]
[1724133949042,0.006,61091.0,61090.0,0.163692]
[1724133949242,0.006,61091.0,61090.0,0.275592]
[1724133949415,0.29748333,61101.0,61090.0,0.275592]
[1724133949416,0.16367,61099.0,61093.0,0.163683]
[1724133949615,0.29748333,61101.0,61097.0,0.163673]
[1724133949816,0.29748333,61101.0,61095.0,0.163677]
[1724133949817,0.451264,61101.0,61095.0,0.163677]
[1724133949999,0.1,61100.0,61096.0,0.163676]
[1724133950944,0.014,61099.0,61096.0,0.163676]
[1724133951488,0.014,61099.0,61092.0,0.327374]
[1724133951669,0.014,61099.0,61088.0,0.479]
[1724133951670,0.491086,61089.0,61088.0,0.479]
[1724133952470,0.163695,61089.0,61088.0,0.479]
[1724133953134,0.163695,61089.0,61088.0,0.474]
[1724133953343,0.491076,61091.0,61088.0,0.474]
[1724133953553,0.16373,61076.0,61075.0,0.009097]
[1724133953755,0.0769,61076.0,61075.0,0.009097]
[1724133953962,0.89555,61076.0,61075.0,0.009097]
[1724133954196,1.15872739,61076.0,61075.0,0.009097]
[1724133954989,1.48618739,61076.0,61075.0,0.009097]
[1724133955311,1.15872739,61076.0,61075.0,0.009097]
[1724133955559,1.17272739,61076.0,61075.0,0.009097]
[1724133955710,1.15872739,61076.0,61075.0,0.009097]
[1724133956118,1.17272739,61076.0,61075.0,0.009097]
[1724133956321,1.18672739,61076.0,61075.0,0.009097]
[1724133956685,1.17272739,61076.0,61075.0,0.009097]
[1724133956893,1.15872739,61076.0,61075.0,0.009097]
[1724133957287,1.17272739,61076.0,61075.0,0.009097]
[1724133957584,1.09582739,61076.0,61075.0,0.009097]
[1724133957804,0.76836739,61076.0,61075.0,0.009097]
[1724133958036,0.78236739,61076.0,61075.0,0.009097]
[1724133958237,0.76836739,61076.0,61075.0,0.009097]
[1724133958732,0.76836739,61076.0,61075.0,0.17283]
[1724133958733,0.014,61076.0,61075.0,0.17283]
[1724133958941,0.1,61080.0,61075.0,0.17283]
[1724133959162,0.013,61076.0,61075.0,0.17283]
[1724133959361,0.013,61076.0,61075.0,0.009097]
[1724133959563,0.027,61076.0,61075.0,0.009097]
[1724133959905,0.013,61076.0,61075.0,0.009097]
[1724133960334,0.17673,61076.0,61075.0,0.009097]
[1724133960732,0.50419,61076.0,61075.0,0.009097]
[1724133960940,0.49119,61076.0,61075.0,0.009097]
[1724133961422,0.50019,61076.0,61075.0,0.010097]
[1724133961705,0.49119,61076.0,61075.0,0.009097]
[1724133961911,0.49619,61076.0,61075.0,0.010097]
[1724133962130,0.50119,61076.0,61075.0,0.010097]
[1724133962556,0.01,61076.0,61075.0,0.17383]
[1724133962758,0.01,61076.0,61075.0,0.906462]
[1724133962971,0.01,61076.0,61075.0,0.905462]
[1724133963249,0.01,61076.0,61075.0,1.46090539]
[1724133963704,0.005,61076.0,61075.0,1.46090539]
[1724133964132,0.16369,61091.0,61086.0,0.163702]
[1724133964379,0.16369,61091.0,61084.0,0.327415]
[1724133964380,0.163703,61087.0,61081.0,0.163715]
[1724133964601,0.2876,61082.0,61075.0,0.089797]
[1724133964824,0.45077739,61082.0,61075.0,0.009097]
[1724133965054,0.001,61076.0,61075.0,0.016097]
[1724133965256,0.001,61076.0,61075.0,0.009097]
[1724133965507,0.163726,61078.0,61075.0,0.013097]
[1724133965735,0.163722,61079.0,61075.0,0.013097]
[1724133966106,0.163722,61079.0,61075.0,0.009097]
[1724133966656,0.163722,61079.0,61075.0,0.012097]
[1724133966866,0.163725,61078.0,61075.0,0.009097]
[1724133967739,0.163721,61080.0,61075.0,0.009097]
[1724133967994,0.163722,61079.0,61075.0,0.012097]
[1724133968233,0.163725,61078.0,61075.0,0.012097]
[1724133968474,0.163725,61078.0,61075.0,0.009097]
[1724133968713,0.163725,61078.0,61075.0,0.010097]
[1724133968940,0.163718,61081.0,61075.0,0.010097]
[1724133969114,0.163718,61081.0,61076.0,0.16373]
[1724133969652,0.2876,61082.0,61075.0,0.010097]
[1724133969653,1.14611,61076.0,61075.0,0.010097]
[1724133969833,1.59688739,61076.0,61075.0,0.009097]
[1724133969986,1.69688739,61076.0,61075.0,0.009097]
[1724133970882,1.83948739,61076.0,61075.0,0.009097]
[1724133971019,1.83948739,61076.0,61075.0,0.010097]
[1724133971203,1.83948739,61076.0,61075.0,0.009097]
[1724133971599,1.84948739,61076.0,61075.0,0.010097]
[1724133972040,1.85848739,61076.0,61075.0,0.011097]
[1724133976208,1.36785,61076.0,61075.0,0.011097]
[1724133976403,1.22525,61076.0,61075.0,0.011097]
[1724133979031,0.89779,61076.0,61075.0,0.011097]
[1724133980938,0.019,61076.0,61075.0,0.011097]
[1724133981166,0.019,61076.0,61075.0,0.32393]
[1724133981562,0.019,61076.0,61075.0,0.651396]
[1724133981790,0.019,61076.0,61075.0,0.978862]
[1724133982876,0.019,61076.0,61075.0,1.306328]
[1724133983590,0.019,61076.0,61075.0,1.46950539]
[1724133984198,0.01,61076.0,61075.0,1.46850539]
[1724133984603,0.000827,61083.0,61082.0,0.491142]
[1724133984760,0.000827,61083.0,61082.0,0.81857]
[1724133984961,0.000827,61083.0,61082.0,0.89877]
[1724133985968,0.010827,61083.0,61082.0,0.89977]
[1724133986192,0.010827,61083.0,61082.0,0.90077]
[1724133986193,0.021827,61083.0,61082.0,0.90077]
[1724133987271,0.011827,61083.0,61082.0,0.89977]
[1724133987744,0.000827,61083.0,61082.0,0.89877]
[1724133987948,0.003827,61083.0,61082.0,0.89877]
[1724133988123,0.006827,61083.0,61082.0,0.89877]
[1724134006693,0.2876,61090.0,61088.0,0.163696]
[1724134007256,0.000827,61093.0,61090.0,0.163691]
[1724134007456,0.000827,61093.0,61088.0,0.00327357]
[1724134007749,0.000827,61093.0,61092.0,0.491062]
[1724134008097,0.000827,61093.0,61092.0,0.163687]
[1724134009278,0.000827,61093.0,61089.0,0.327388]
[1724134009505,0.008827,61093.0,61092.0,0.164687]
[1724134009912,0.008827,61093.0,61092.0,0.001]
[1724134010237,0.014827,61093.0,61092.0,0.002]
[1724134011300,0.014827,61093.0,61092.0,0.165687]
[1724134012806,0.014827,61093.0,61092.0,0.820437]
[1724134013017,0.014827,61093.0,61092.0,0.899337]
[1724134016016,0.000827,61093.0,61092.0,1.224712]
[1724134016194,0.000827,61093.0,61092.0,1.290712]
[1724134017309,0.000827,61093.0,61092.0,1.45388939]
[1724134017503,0.001827,61093.0,61092.0,1.45488939]
[1724134017886,0.002827,61093.0,61092.0,1.46188939]
[1724134019424,0.001827,61093.0,61092.0,1.45688939]
[1724134019630,0.001827,61093.0,61092.0,1.46288939]
[1724134019865,0.002827,61093.0,61092.0,1.46288939]
[1724134020415,0.002827,61093.0,61092.0,1.79126439]
[1724134021016,0.002827,61093.0,61092.0,1.91426439]
[1724134021194,0.002827,61093.0,61092.0,1.91826439]
[1724134021596,0.002827,61093.0,61092.0,1.92823758]
[1724134022232,0.001827,61093.0,61092.0,1.92123758]
[1724134022482,0.001827,61093.0,61092.0,1.92723758]
[1724134022859,0.002827,61093.0,61092.0,1.93723758]
[1724134024243,0.002827,61093.0,61092.0,3.31876315]
[1724134024572,0.002827,61093.0,61092.0,4.941035]
[1724134025194,0.001827,61093.0,61092.0,4.929035]
[1724134025556,0.001827,61093.0,61092.0,4.80676315]
[1724134025758,0.000827,61093.0,61092.0,4.80676315]
[1724134025878,1e-06,61093.0,61092.0,5.25634154]
[1724134026081,1e-06,61093.0,61092.0,5.13813815]
[1724134026289,1e-06,61093.0,61092.0,5.13267895]
[1724134026510,1e-06,61093.0,61092.0,5.26885585]
[1724134026952,1e-06,61093.0,61092.0,5.26485585]
[1724134027161,1e-06,61093.0,61092.0,5.25085585]
[1724134027373,1e-06,61093.0,61092.0,5.22639442]
[1724134027563,1e-06,61093.0,61092.0,5.24039442]
[1724134028078,1e-06,61093.0,61092.0,5.24439442]
[1724134028272,1e-06,61093.0,61092.0,5.24436684]
[1724134029423,1e-06,61093.0,61092.0,5.21592351]
[1724134030145,1e-06,61093.0,61092.0,5.21992351]
[1724134030340,1e-06,61093.0,61092.0,5.04123214]
[1724134030544,1e-06,61093.0,61092.0,5.03723214]
[1724134030667,1e-06,61093.0,61092.0,5.04123214]
[1724134030876,1e-06,61093.0,61092.0,5.04121422]
[1724134031278,1e-06,61093.0,61092.0,4.96798758]
[1724134031681,1e-06,61093.0,61092.0,5.01679448]
[1724134031892,1e-06,61093.0,61092.0,5.01279448]
[1724134032090,1e-06,61093.0,61092.0,5.01679448]
[1724134033320,1e-06,61093.0,61092.0,4.96798758]
[1724134034304,1e-06,61093.0,61092.0,4.97454158]
[1724134035296,1e-06,61093.0,61092.0,2.79679158]
[1724134035500,1e-06,61093.0,61092.0,2.79023758]
[1724134036923,1e-06,61093.0,61092.0,2.81323758]
[1724134037444,1e-06,61093.0,61092.0,2.80923758]
[1724134037680,1e-06,61093.0,61092.0,2.81323758]
[1724134038318,1e-06,61093.0,61092.0,2.80923758]
[1724134038521,1e-06,61093.0,61092.0,2.81323758]
[1724134039531,1e-06,61093.0,61092.0,2.80923758]
[1724134039731,1e-06,61093.0,61092.0,2.81323758]
[1724134039935,1e-06,61093.0,61092.0,2.80923758]
[1724134040735,1e-06,61093.0,61092.0,4.30923758]
[1724134041169,1e-06,61093.0,61092.0,4.63661258]
[1724134042350,0.002227,61105.0,61092.0,4.63661258]
[1724134042351,0.002227,61105.0,61104.0,1.473895]
[1724134042638,0.002227,61105.0,61104.0,2.73497239]
[1724134043813,0.002227,61105.0,61104.0,2.73897239]
[1724134044158,0.002227,61105.0,61104.0,1.76407239]
[1724134044366,0.002227,61105.0,61104.0,3.26407239]
[1724134044492,0.002227,61105.0,61104.0,4.12807239]
[1724134044697,0.002227,61105.0,61104.0,4.13807239]
[1724134044906,0.002227,61105.0,61104.0,4.14207239]
[1724134045305,0.002227,61105.0,61104.0,3.29207239]
[1724134045500,0.002227,61105.0,61104.0,3.30202377]
[1724134045908,0.002227,61105.0,61104.0,4.07802377]
[1724134046059,0.002227,61105.0,61104.0,3.30202377]
[1724134047819,0.002227,61105.0,61104.0,4.09202377]
[1724134048333,0.002227,61105.0,61104.0,3.30202377]
[1724134050097,0.002227,61105.0,61104.0,4.16202377]
[1724134050307,0.002227,61105.0,61104.0,3.30202377]
[1724134050739,0.002227,61105.0,61104.0,4.01202377]
[1724134051106,0.002227,61105.0,61104.0,4.00802377]
[1724134051274,0.002227,61105.0,61104.0,3.30202377]
[1724134052413,0.142327,61105.0,61104.0,1.77902377]
[1724134053098,0.142327,61105.0,61104.0,1.43676239]
[1724134053483,0.142327,61105.0,61104.0,0.846275]
[1724134057002,0.142327,61105.0,61104.0,0.832275]
[1724134057199,0.142327,61105.0,61104.0,0.844275]
[1724134057573,0.142327,61105.0,61104.0,0.830275]
[1724134058537,0.142327,61105.0,61104.0,0.839275]
[1724134059962,0.142327,61105.0,61104.0,1.32076239]
[1724134060104,0.142327,61105.0,61104.0,1.33276239]
[1724134061010,0.142327,61105.0,61104.0,1.30876239]
[1724134061342,0.142327,61105.0,61104.0,1.33476239]
[1724134068340,0.142327,61105.0,61104.0,1.33776239]
[1724134068542,0.142327,61105.0,61104.0,1.33576239]
[1724134068923,0.142327,61105.0,61104.0,1.38480284]
[1724134068924,0.002227,61105.0,61104.0,1.38480284]
[1724134069263,0.002227,61105.0,61104.0,1.33576239]
[1724134069460,0.002227,61105.0,61104.0,1.33976239]
[1724134069671,0.002227,61105.0,61104.0,1.33576239]
[1724134069871,0.002227,61105.0,61104.0,1.66307239]
[1724134070205,0.002227,61105.0,61104.0,1.91472994]
[1724134070606,0.002227,61105.0,61104.0,1.73663307]
[1724134070813,0.002227,61105.0,61104.0,1.73511827]
[1724134071028,0.002227,61105.0,61104.0,1.93741103]
[1724134071394,0.002227,61105.0,61104.0,1.93725072]
[1724134071603,0.002227,61105.0,61104.0,1.86368391]
[1724134071856,0.002227,61105.0,61104.0,1.93725045]
[1724134072574,0.002227,61105.0,61104.0,1.86368391]
[1724134072778,0.002227,61105.0,61104.0,1.961773]
[1724134073058,0.002227,61105.0,61104.0,2.781773]
[1724134073256,0.002227,61105.0,61104.0,2.78577174]
[1724134073412,0.002227,61105.0,61104.0,2.78177174]
[1724134073761,0.002227,61105.0,61104.0,1.96368391]
[1724134073978,0.002227,61105.0,61104.0,2.06177076]
[1724134074169,0.002227,61105.0,61104.0,1.96368391]
[1724134074700,0.002227,61105.0,61104.0,1.96768391]
[1724134074943,0.002227,61105.0,61104.0,2.09029527]
[1724134075147,0.002227,61105.0,61104.0,2.06576793]
[1724134075348,0.002227,61105.0,61104.0,2.09029527]
[1724134075552,0.002227,61105.0,61104.0,2.08629527]
[1724134075759,0.002227,61105.0,61104.0,2.08395606]
[1724134076131,0.002227,61105.0,61104.0,1.96135364]
[1724134076538,0.002227,61105.0,61104.0,2.05943399]
[1724134076739,0.002227,61105.0,61104.0,2.83135364]
[1724134076940,0.002227,61105.0,61104.0,2.41126606]
[1724134077140,0.002227,61105.0,61104.0,1.96135364]
[1724134077323,0.002227,61105.0,61104.0,2.08795199]
[1724134077518,0.002227,61105.0,61104.0,1.96535364]
[1724134077724,0.002227,61105.0,61104.0,2.08795199]
[1724134077920,0.002227,61105.0,61104.0,2.08395199]
[1724134078444,0.002227,61105.0,61104.0,2.81795199]
[1724134078642,0.002227,61105.0,61104.0,2.69535364]
[1724134078844,0.002227,61105.0,61104.0,2.81395199]
[1724134079711,0.002227,61105.0,61104.0,2.08395199]
[1724134080162,0.002227,61105.0,61104.0,2.89395199]
[1724134080748,0.002227,61105.0,61104.0,3.22126199]
[1724134081141,0.002227,61105.0,61104.0,3.09866364]
[1724134081344,0.002227,61105.0,61104.0,4.59866364]
[1724134082010,0.002227,61105.0,61104.0,4.67956364]
[1724134083133,0.002227,61105.0,61104.0,4.67923295]
[1724134083394,0.002227,61105.0,61104.0,4.67886614]
[1724134083609,0.002227,61105.0,61104.0,4.95789482]
[1724134083799,0.002227,61105.0,61104.0,5.02199482]
[1724134084128,0.002227,61105.0,61104.0,5.00499482]
[1724134084331,0.002227,61105.0,61104.0,5.00899482]
[1724134084535,0.002227,61105.0,61104.0,5.00999482]
[1724134085063,0.002227,61105.0,61104.0,5.02399482]
[1724134085288,0.002227,61105.0,61104.0,5.00999482]
[1724134085490,0.002227,61105.0,61104.0,5.00599482]
[1724134085688,1e-06,61111.0,61110.0,2.060429]
[1724134085900,1e-06,61111.0,61110.0,3.31974883]
[1724134086072,1e-06,61111.0,61110.0,3.64702683]
[1724134086275,1e-06,61111.0,61110.0,5.14702683]
[1724134086478,1e-06,61111.0,61110.0,5.38982751]
[1724134086900,1e-06,61111.0,61110.0,5.39947514]
[1724134087090,1e-06,61111.0,61110.0,5.38947514]
[1724134087452,1e-06,61111.0,61110.0,6.88261978]
[1724134087627,1e-06,61111.0,61110.0,6.25186002]
[1724134087831,1e-06,61111.0,61110.0,6.67308285]
[1724134087986,1e-06,61111.0,61110.0,6.65908285]
[1724134088413,1e-06,61111.0,61110.0,6.87980841]
[1724134088642,1e-06,61111.0,61110.0,6.89380841]
[1724134088847,1e-06,61111.0,61110.0,6.88980841]
[1724134089017,1e-06,61111.0,61110.0,6.67308285]
[1724134089191,1e-06,61111.0,61110.0,6.87580841]
[1724134089391,1e-06,61111.0,61110.0,6.67308285]
[1724134089600,1e-06,61111.0,61110.0,6.67708285]
[1724134089823,1e-06,61111.0,61110.0,7.37308285]
[1724134090032,1e-06,61111.0,61110.0,7.35908285]
[1724134090343,1e-06,61111.0,61110.0,7.37708285]
[1724134090567,1e-06,61111.0,61110.0,7.36308285]
[1724134090757,1e-06,61111.0,61110.0,7.34908285]
[1724134091029,1e-06,61111.0,61110.0,7.37308285]
[1724134091383,1e-06,61111.0,61110.0,7.37708285]
[1724134092212,1e-06,61111.0,61110.0,7.37224312]
[1724134092417,1e-06,61111.0,61110.0,6.82282312]
[1724134092580,1e-06,61111.0,61110.0,6.44446438]
[1724134092780,1e-06,61111.0,61110.0,6.40823638]
[1724134093195,1e-06,61111.0,61110.0,6.40423638]
[1724134093697,1e-06,61111.0,61110.0,6.29333638]
[1724134093897,1e-06,61111.0,61110.0,6.40823638]
[1724134095687,1e-06,61111.0,61110.0,6.40423638]
[1724134095878,1e-06,61111.0,61110.0,6.40823638]
[1724134096060,1e-06,61111.0,61110.0,6.40423638]
[1724134097207,0.0632,61122.0,61121.0,1.472485]
[1724134097423,0.0632,61122.0,61121.0,2.74356239]
[1724134097887,0.0632,61122.0,61121.0,4.24756239]
[1724134098556,0.0632,61122.0,61121.0,4.27556239]
[1724134099908,0.1443,61122.0,61121.0,4.27556239]
[1724134100483,0.1443,61122.0,61121.0,1.33644339]
[1724134100484,0.2592,61122.0,61121.0,1.33644339]
[1724134100691,0.1443,61122.0,61121.0,1.33644339]
[1724134104041,0.1443,61122.0,61121.0,1.173266]
[1724134104245,0.1443,61122.0,61121.0,0.846047]
[1724134106249,0.145127,61122.0,61121.0,0.846047]
[1724134106625,0.146127,61122.0,61121.0,0.028]
[1724134107735,0.146127,61122.0,61121.0,0.014]
[1724134107940,0.145,61121.0,61120.0,0.163611]
[1724134108504,0.145,61121.0,61118.0,0.327234]
[1724134108505,0.146,61120.0,61117.0,0.163618]
[1724134108704,0.0658,61121.0,61118.0,0.163616]
[1724134108927,0.0802,61120.0,61119.0,0.163615]
[1724134109427,0.1446,61120.0,61119.0,0.490845]
[1724134109618,0.1446,61120.0,61119.0,0.818075]
[1724134111608,0.1446,61120.0,61119.0,0.832075]
[1724134111739,0.1446,61120.0,61119.0,1.32248239]
[1724134111947,0.1446,61120.0,61119.0,1.33648239]
[1724134113829,0.1446,61120.0,61119.0,1.33948239]
[1724134114026,0.1446,61120.0,61119.0,1.33648239]
[1724134114865,0.000827,61122.0,61121.0,1.145266]
[1724134115049,0.000827,61122.0,61121.0,1.30844339]
[1724134116059,0.000827,61122.0,61121.0,1.63666239]
[1724134116248,0.000827,61122.0,61121.0,1.63566239]
[1724134117088,0.000827,61122.0,61121.0,1.64866239]
[1724134117528,0.000827,61122.0,61121.0,1.66266239]
[1724134119058,0.000827,61122.0,61121.0,1.66366239]
[1724134119279,0.000827,61122.0,61121.0,1.66466239]
[1724134119511,0.000827,61122.0,61121.0,1.66666239]
[1724134121325,0.000827,61122.0,61121.0,1.66266239]
[1724134125167,0.143627,61122.0,61121.0,1.33544339]
[1724134129656,0.143627,61122.0,61121.0,0.845047]
[1724134132411,0.01262445,61122.0,61121.0,0.845047]
[1724134132646,0.12742445,61122.0,61121.0,0.845047]
[1724134135006,0.12742445,61122.0,61121.0,0.517828]
[1724134135426,0.20332445,61122.0,61121.0,0.517828]
[1724134136070,0.20332445,61122.0,61121.0,0.845047]
[1724134136343,0.20432445,61122.0,61121.0,0.517828]
[1724134137432,0.20432445,61122.0,61121.0,0.190609]
[1724134138059,0.20432445,61122.0,61121.0,0.027]
[1724134139034,0.79514545,61122.0,61121.0,0.027]
[1724134141950,0.46793145,61122.0,61121.0,0.027]
[1724134142174,0.35313145,61122.0,61121.0,0.027]
[1724134142379,0.30515145,61122.0,61121.0,0.027]
[1724134143145,0.30515145,61122.0,61121.0,0.190609]
[1724134143343,0.20515145,61122.0,61121.0,0.190609]
[1724134143998,0.20515145,61122.0,61121.0,0.027]
[1724134145719,0.20515145,61122.0,61091.0,0.07348371]
[1724134145720,0.164687,61092.0,61091.0,0.07348371]
[1724134146075,0.1148,61093.0,61090.0,0.163691]
[1724134146278,0.1148,61093.0,61087.0,0.1637]
[1724134146279,0.163688,61092.0,61087.0,0.1637]
[1724134146507,0.001,61094.0,61084.0,0.076]
[1724134146712,0.001,61094.0,61085.0,0.16317739]
[1724134146928,0.001,61094.0,61088.0,0.327394]
[1724134147139,0.001,61094.0,61091.0,0.163689]
[1724134147349,0.001,61094.0,61091.0,0.173689]
[1724134147552,0.001,61094.0,61093.0,0.163684]
[1724134147794,0.001,61094.0,61093.0,0.491053]
[1724134148194,0.001,61094.0,61093.0,0.163684]
[1724134149729,0.001,61094.0,61093.0,0.164684]
[1724134150178,0.001,61094.0,61093.0,0.163684]
[1724134150379,0.001,61094.0,61093.0,0.165684]
[1724134150772,0.001,61094.0,61093.0,0.163684]
[1724134150973,0.001,61094.0,61093.0,0.165684]
[1724134151436,0.001,61094.0,61093.0,0.163684]
[1724134151611,0.001,61094.0,61093.0,0.167684]
[1724134152021,0.001,61094.0,61093.0,0.163684]
[1724134152235,0.001,61094.0,61093.0,0.165684]
[1724134152440,0.001,61094.0,61093.0,0.004]
[1724134153320,0.001,61094.0,61093.0,0.002]
[1724134153669,0.001,61094.0,61092.0,0.163686]
[1724134153998,0.001,61093.0,61092.0,0.163686]
[1724134154413,0.001,61093.0,61091.0,0.163688]
[1724134154629,0.0741,61095.0,61091.0,0.163688]
[1724134154630,0.001,61092.0,61091.0,0.163688]
[1724134155886,0.001,61092.0,61083.0,0.0009097]
[1724134156089,0.001,61088.0,61083.0,0.0009097]
[1724134156293,0.001,61088.0,61087.0,0.491101]
[1724134157486,0.001,61088.0,61087.0,0.495101]
[1724134159267,0.001,61088.0,61087.0,0.499101]
[1724134162032,0.001,61088.0,61087.0,0.826502]
[1724134163483,0.0829,61088.0,61087.0,0.1717]
[1724134163685,0.0829,61088.0,61087.0,0.008]
[1724134166223,0.0829,61088.0,61087.0,0.0089097]
[1724134169773,0.246598,61088.0,61087.0,0.0089097]
[1724134169974,0.573994,61088.0,61087.0,0.0089097]
[1724134171696,0.90139,61088.0,61087.0,0.0089097]
[1724134171943,0.573994,61088.0,61087.0,0.0089097]
[1724134172143,0.0829,61088.0,61087.0,0.0089097]
[1724134172345,0.001,61088.0,61087.0,0.0089097]
[1724134176069,0.288227,61093.0,61087.0,0.0089097]
[1724134176070,0.001827,61093.0,61088.0,0.0778]
[1724134176285,0.000827,61093.0,61092.0,0.491062]
[1724134176422,0.000827,61093.0,61092.0,0.818437]
[1724134176619,0.000827,61093.0,61092.0,0.898637]
[1724134177434,0.002827,61093.0,61092.0,0.898637]
[1724134177838,0.000827,61093.0,61092.0,0.898637]
[1724134178283,0.002827,61093.0,61092.0,0.898637]
[1724134178837,0.004827,61093.0,61092.0,0.898637]
[1724134179218,0.004827,61093.0,61092.0,0.571262]
[1724134179759,0.004827,61093.0,61092.0,0.898637]
[1724134180163,0.004827,61093.0,61092.0,0.163687]
[1724134180164,0.005827,61093.0,61092.0,0.163687]
[1724134180744,0.001,61091.0,61090.0,0.163691]
[1724134180966,0.001,61089.0,61088.0,0.163696]
[1724134181143,0.001,61089.0,61088.0,0.491092]
[1724134182046,0.001,61089.0,61088.0,0.163696]
[1724134183418,0.001,61089.0,61088.0,0.166696]
[1724134183830,0.001,61089.0,61088.0,0.169696]
[1724134184245,0.001,61089.0,61088.0,0.006]
[1724134184454,0.001,61089.0,61088.0,0.169698]
[1724134187676,0.001,61089.0,61088.0,0.497094]
[1724134187815,0.001,61089.0,61088.0,0.579394]
[1724134190213,0.001,61089.0,61088.0,0.497094]
[1724134190634,0.75827239,61089.0,61088.0,0.006]
[1724134190838,0.163708,61084.0,61083.0,0.0009097]
[1724134191040,1.19189544,61084.0,61083.0,0.0009097]
[1724134191240,2.24657674,61084.0,61083.0,0.0009097]
[1724134191412,2.24635319,61084.0,61083.0,0.0009097]
[1724134191859,1.73280139,61084.0,61083.0,0.0009097]
[1724134192004,1.83015233,61084.0,61083.0,0.0009097]
[1724134192409,1.73352796,61084.0,61083.0,0.0009097]
[1724134192633,1.844548,61084.0,61083.0,0.0019097]
[1724134193027,1.830548,61084.0,61083.0,0.0009097]
[1724134193225,1.73352796,61084.0,61083.0,0.0009097]
[1724134193429,1.80176653,61084.0,61083.0,0.0019097]
[1724134193610,1.81576653,61084.0,61083.0,0.0029097]
[1724134194214,1.72907119,61084.0,61083.0,0.0019097]
[1724134194639,1.57993639,61084.0,61083.0,0.0029097]
[1724134194892,1.86733639,61084.0,61083.0,0.0029097]
[1724134195379,1.85333639,61084.0,61083.0,0.0019097]
[1724134195679,1.83933639,61084.0,61083.0,0.0009097]
[1724134196022,1.85333639,61084.0,61083.0,0.0019097]
[1724134196423,1.90177686,61084.0,61083.0,0.0019097]
[1724134196629,1.91577686,61084.0,61083.0,0.0029097]
[1724134197064,2.00585648,61084.0,61083.0,0.0029097]
[1724134197710,1.91577686,61084.0,61083.0,0.0029097]
[1724134198285,1.86733639,61084.0,61083.0,0.0029097]
[1724134201919,1.87643339,61084.0,61083.0,0.0029097]
[1724134203218,1.39811939,61084.0,61083.0,0.0029097]
[1724134205345,0.029,61084.0,61083.0,0.0029097]
[1724134205543,0.029,61084.0,61083.0,0.0838097]
[1724134206386,0.001,61084.0,61083.0,0.0818097]
[1724134206585,0.178708,61084.0,61083.0,0.0828097]
[1724134206815,0.192708,61084.0,61083.0,0.0838097]
[1724134207001,0.506125,61084.0,61083.0,0.0828097]
[1724134207321,0.178708,61084.0,61083.0,0.0828097]
[1724134207472,0.178708,61084.0,61083.0,0.0818097]
[1724134207682,0.164708,61084.0,61083.0,0.0818097]
[1724134207878,0.170708,61084.0,61083.0,0.0828097]
[1724134208515,0.505125,61084.0,61083.0,0.0838097]
[1724134208959,0.498125,61084.0,61083.0,0.0828097]
[1724134209199,0.499125,61084.0,61083.0,0.0828097]
[1724134209551,0.505125,61084.0,61083.0,0.0838097]
[1724134209947,0.832542,61084.0,61083.0,0.0029097]
[1724134210320,0.99571939,61084.0,61083.0,0.0029097]
[1724134210719,1.32313639,61084.0,61083.0,0.0029097]
[1724134212087,0.98871939,61084.0,61083.0,0.0019097]
[1724134212484,0.99971939,61084.0,61083.0,0.0019097]
[1724134212731,0.99371939,61084.0,61083.0,0.0009097]
[1724134213183,1.25542839,61084.0,61083.0,0.0019097]
[1724134213394,1.50163639,61084.0,61083.0,0.0019097]
[1724134213594,1.50163639,61084.0,61083.0,0.0009097]
[1724134213595,1.56313639,61084.0,61083.0,0.0009097]
[1724134213994,1.57313639,61084.0,61083.0,0.0009097]
[1724134214648,1.57313639,61084.0,61075.0,0.009097]
[1724134214649,1.62027,61076.0,61075.0,0.009097]
[1724134214800,1.62027,61076.0,61071.0,0.0002]